fUST/lending_fUST_20250810
["ID","MTS","AMOUNT","RATE_DAILY","PERIOD"]
[378334581,1754830232695,-4.16885423,0.00019998,2]
[378334583,1754830232704,-412.47668682,0.00019998,2]
[378334585,1754830232716,-145.94331318,0.00019998,2]
[378334587,1754830232726,-310.53629324,0.00019998,2]
[378334589,1754830232737,-149.46370676,0.00019998,2]
[378334591,1754830232747,-460.0,0.00019998,2]
[378334593,1754830232757,-2065.88,0.00019998,2]
[378334595,1754830232766,-460.0,0.00019998,2]
[378334598,1754830232774,-188.72408324,0.00019998,2]
[378334603,1754830232797,-289.37659446,0.00019998,2]
[378334606,1754830232806,-460.0,0.00019998,2]
[378334609,1754830232816,-460.0,0.00019998,2]
[378334612,1754830232825,-460.0,0.00019998,2]
[378334615,1754830232835,-460.0,0.00019998,2]
[378334618,1754830232844,-460.0,0.00019998,2]
[378334620,1754830232854,-460.0,0.00019998,2]
[378334623,1754830232864,-460.0,0.00019998,2]
[378334626,1754830232873,-460.0,0.00019998,2]
[378334627,1754830232883,-460.0,0.00019998,2]
[378334629,1754830232892,-460.0,0.00019998,2]
[378334631,1754830232901,-460.0,0.00019998,2]
[378334633,1754830232911,-460.0,0.00019998,2]
[378334636,1754830232923,-460.0,0.00019998,2]
[378334638,1754830232932,-460.0,0.00019998,2]
[378334640,1754830232941,-460.0,0.00019998,2]
[378334642,1754830232950,-238.00414685,0.00019998,2]
[378334644,1754830232963,-221.99585315,0.00019998,2]
[378334646,1754830232977,-460.0,0.00019998,2]
[378334647,1754830232986,-460.0,0.00019998,2]
[378334648,1754830232995,-281.58194571,0.00019998,2]
[378334650,1754830234647,460.0,0.00019997,2]
[378334660,1754830238511,-178.41805429,0.00019998,2]
[378334661,1754830238521,-460.0,0.00019998,2]
[378334662,1754830238531,-460.0,0.00019998,2]
[378334663,1754830238541,-460.0,0.00019998,2]
[378334664,1754830238551,-460.0,0.00019998,2]
[378334665,1754830238560,-460.0,0.00019998,2]
[378334666,1754830238570,-460.0,0.00019998,2]
[378334667,1754830238579,-460.0,0.00019998,2]
[378334668,1754830238589,-460.0,0.00019998,2]
[378334669,1754830238598,-460.0,0.00019998,2]
[378334670,1754830238608,-460.0,0.00019998,2]
[378334671,1754830238618,-460.0,0.00019998,2]
[378334672,1754830238627,-460.0,0.00019998,2]
[378334673,1754830238636,-460.0,0.00019998,2]
[378334674,1754830238646,-460.0,0.00019998,2]
[378334675,1754830238655,-460.0,0.00019998,2]
[378334676,1754830238664,-460.0,0.00019998,2]
[378334677,1754830238674,-460.0,0.00019998,2]
[378334678,1754830238683,-753.63,0.00019998,2]
[378334679,1754830238693,-469.27924811,0.00019998,2]
[378334680,1754830238702,-460.0,0.00019998,2]
[378334681,1754830238711,-460.0,0.00019998,2]
[378334682,1754830238720,-460.0,0.00019998,2]
[378334683,1754830238730,-460.0,0.00019998,2]
[378334684,1754830238739,-460.0,0.00019998,2]
[378334685,1754830238748,-460.0,0.00019998,2]
[378334686,1754830238758,-460.0,0.00019998,2]
[378334687,1754830238767,-375.03421225,0.00019998,2]
[378334688,1754830238777,-460.0,0.00019998,2]
[378334689,1754830238786,-460.0,0.00019998,2]
[378334690,1754830238796,-460.0,0.00019998,2]
[378334691,1754830238805,-764.6,0.00019998,2]
[378334692,1754830238815,-460.0,0.00019998,2]
[378334693,1754830238825,-460.0,0.00019998,2]
[378334694,1754830238834,-460.0,0.00019998,2]
[378334695,1754830238844,-460.0,0.00019998,2]
[378334696,1754830238855,-7042.71744869,0.00019998,2]
[378334697,1754830238864,-500.0,0.00019998,2]
[378334698,1754830238874,-460.0,0.00019999,2]
[378334699,1754830238884,-460.0,0.00019999,2]
[378334700,1754830238894,-460.0,0.00019999,2]
[378334701,1754830238905,-727.7,0.00019999,2]
[378334702,1754830238914,-460.0,0.00019999,2]
[378334703,1754830238924,-1840.89,0.00019999,2]
[378334704,1754830238933,-460.0,0.00019999,2]
[378334705,1754830238942,-475.39172222,0.00019999,2]
[378334706,1754830238952,-460.0,0.00019999,2]
[378334707,1754830238961,-624.49,0.00019999,2]
[378334708,1754830238974,-460.0,0.00019999,2]
[378334709,1754830238983,-460.0,0.00019999,2]
[378334710,1754830238993,-460.0,0.00019999,2]
[378334711,1754830239002,-460.0,0.00019999,2]
[378334712,1754830239011,-460.0,0.00019999,2]
[378334713,1754830239022,-460.0,0.00019999,2]
[378334714,1754830239031,-460.0,0.00019999,2]
[378334715,1754830239041,-460.0,0.00019999,2]
[378334716,1754830239053,-837.19,0.00020168,2]
[378334717,1754830239062,-559.51,0.00020168,2]
[378334718,1754830239072,-460.0,0.00020168,2]
[378334719,1754830239081,-460.0,0.00020168,2]
[378334720,1754830239090,-460.0,0.00020169,2]
[378334721,1754830239100,-460.0,0.00020169,2]
[378334722,1754830239109,-460.0,0.00020169,2]
[378334723,1754830239118,-460.0,0.00020169,2]
[378334724,1754830239127,-460.0,0.00020169,2]
[378334725,1754830239136,-208.40669473,0.00020169,2]
[378334726,1754830239146,-460.0,0.00020169,2]
[378334727,1754830239155,-460.0,0.00020169,2]
[378334728,1754830239164,-460.0,0.00020169,2]
[378334729,1754830239174,-460.0,0.00020169,2]
[378334730,1754830239183,-460.0,0.00020169,2]
[378334731,1754830239192,-460.0,0.00020169,2]
[378334732,1754830239202,-460.0,0.00020169,2]
[378334733,1754830239212,-460.0,0.00020169,2]
[378334734,1754830239221,-460.0,0.00020169,2]
[378334735,1754830239231,-460.0,0.00020169,2]
[378334736,1754830239240,-461.10545866,0.00020169,2]
[378334737,1754830239250,-460.0,0.00020169,2]
[378334738,1754830239259,-460.0,0.00020169,2]
[378334739,1754830239269,-460.0,0.00020169,2]
[378334740,1754830239278,-460.0,0.00020169,2]
[378334741,1754830239288,-460.0,0.00020169,2]
[378334742,1754830239298,-460.0,0.00020169,2]
[378334743,1754830239307,-460.0,0.00020169,2]
[378334744,1754830239317,-460.0,0.00020169,2]
[378334745,1754830239327,-460.0,0.00020169,2]
[378334746,1754830239338,-460.0,0.00020169,2]
[378334747,1754830239347,-460.0,0.00020169,2]
[378334748,1754830239357,-460.0,0.00020169,2]
[378334749,1754830239367,-460.0,0.00020169,2]
[378334750,1754830239376,-460.0,0.00020169,2]
[378334751,1754830239385,-460.0,0.00020169,2]
[378334752,1754830239515,-460.0,0.00020169,2]
[378334753,1754830239527,-460.0,0.00020169,2]
[378334754,1754830239536,-460.0,0.00020169,2]
[378334755,1754830239546,-460.0,0.00020169,2]
[378334756,1754830239555,-460.0,0.00020169,2]
[378334757,1754830239565,-460.0,0.00020169,2]
[378334758,1754830239575,-460.0,0.00020169,2]
[378334759,1754830239584,-460.0,0.00020169,2]
[378334760,1754830239594,-500.0,0.00020169,2]
[378334761,1754830239603,-460.0,0.00020169,2]
[378334762,1754830239613,-460.0,0.00020169,2]
[378334763,1754830239623,-474.22715063,0.00020169,2]
[378334764,1754830239632,-460.0,0.00020169,2]
[378334765,1754830239641,-460.0,0.00020169,2]
[378334766,1754830239651,-460.0,0.00020169,2]
[378334767,1754830239660,-423.77781577,0.00020169,2]
[378334768,1754830239670,-460.0,0.00020169,2]
[378334769,1754830239679,-460.0,0.00020169,2]
[378334770,1754830239688,-460.0,0.00020169,2]
[378334771,1754830239698,-460.0,0.00020169,2]
[378334772,1754830239708,-460.0,0.00020169,2]
[378334773,1754830239717,-460.0,0.00020169,2]
[378334774,1754830239727,-482.90755217,0.00020169,2]
[378334775,1754830239738,-460.0,0.00020169,2]
[378334776,1754830239748,-460.0,0.00020169,2]
[378334777,1754830239758,-460.0,0.00020169,2]
[378334778,1754830239768,-460.0,0.00020169,2]
[378334779,1754830239778,-480.8929248,0.00020169,2]
[378334780,1754830239789,-460.0,0.00020169,2]
[378334781,1754830239799,-460.0,0.00020169,2]
[378334782,1754830239808,-460.0,0.00020169,2]
[378334783,1754830239818,-460.0,0.00020169,2]
[378334784,1754830239827,-460.0,0.00020169,2]
[378334785,1754830239838,-460.0,0.00020169,2]
[378334786,1754830239848,-460.0,0.00020169,2]
[378334787,1754830239857,-460.0,0.00020169,2]
[378334788,1754830239867,-460.0,0.00020169,2]
[378334789,1754830239877,-460.0,0.00020169,2]
[378334790,1754830239887,-460.0,0.00020169,2]
[378334791,1754830239897,-460.0,0.00020169,2]
[378334793,1754830239907,-460.0,0.00020169,2]
[378334794,1754830239916,-468.42027887,0.00020169,2]
[378334795,1754830239926,-460.0,0.00020169,2]
[378334796,1754830239936,-460.0,0.00020169,2]
[378334797,1754830239945,-460.0,0.00020169,2]
[378334798,1754830239955,-460.0,0.00020169,2]
[378334800,1754830239964,-460.0,0.00020169,2]
[378334802,1754830239977,-460.0,0.00020169,2]
[378334803,1754830239987,-460.0,0.00020169,2]
[378334804,1754830239996,-460.0,0.00020169,2]
[378334805,1754830240005,-460.0,0.00020169,2]
[378334806,1754830240015,-460.0,0.00020169,2]
[378334807,1754830240025,-460.0,0.00020169,2]
[378334808,1754830240035,-460.0,0.00020169,2]
[378334809,1754830240044,-464.71272201,0.00020169,2]
[378334810,1754830240056,-460.0,0.00020169,2]
[378334812,1754830240065,-349.380389,0.00020187,2]
[378334813,1754830240075,-556.5617479,0.00020269,2]
[378334814,1754830240084,-500.0,0.00020269,2]
[378334815,1754830240094,-507.95243491,0.00020269,2]
[378334816,1754830240103,-210.00825829,0.00020269,2]
[378334817,1754830240114,-500.0,0.0002027,2]
[378334818,1754830240123,-460.0,0.0002027,2]
[378334819,1754830240132,-460.0,0.0002027,2]
[378334820,1754830240142,-460.0,0.0002027,2]
[378334821,1754830240151,-460.0,0.0002027,2]
[378334822,1754830240160,-460.0,0.0002027,2]
[378334823,1754830240170,-460.0,0.0002027,2]
[378334824,1754830240179,-846.67,0.0002027,2]
[378334825,1754830240189,-460.0,0.0002027,2]
[378334826,1754830240198,-629.56,0.0002027,2]
[378334827,1754830240207,-460.0,0.0002027,2]
[378334828,1754830240217,-728.12,0.0002027,2]
[378334829,1754830240226,-460.0,0.0002027,2]
[378334830,1754830240235,-745.25,0.0002027,2]
[378334831,1754830240245,-460.0,0.0002027,2]
[378334832,1754830240255,-460.0,0.0002027,2]
[378334833,1754830240265,-924.74,0.0002027,2]
[378334834,1754830240274,-460.0,0.00020271,2]
[378334835,1754830240284,-460.0,0.00020271,2]
[378334836,1754830240294,-460.0,0.00020271,2]
[378334837,1754830240303,-411.68959589,0.00020271,2]
[378334838,1754830240313,-692.27,0.00020271,2]
[378334839,1754830240323,-460.0,0.00020271,2]
[378334840,1754830240332,-460.0,0.00020271,2]
[378334841,1754830240342,-460.0,0.00020271,2]
[378334842,1754830240351,-715.24,0.00020271,2]
[378334843,1754830240360,-468.40683343,0.00020271,2]
[378334844,1754830240370,-460.0,0.00020271,2]
[378334845,1754830240380,-460.0,0.00020271,2]
[378334846,1754830240390,-460.0,0.00020271,2]
[378334847,1754830240399,-460.0,0.00020271,2]
[378334848,1754830240408,-460.0,0.00020271,2]
[378334849,1754830240417,-460.0,0.00020271,2]
[378334850,1754830240427,-460.0,0.00020271,2]
[378334851,1754830240437,-460.0,0.00020271,2]
[378334852,1754830240446,-460.0,0.00020271,2]
[378334853,1754830240456,-460.0,0.00020271,2]
[378334854,1754830240465,-651.52,0.00020271,2]
[378334855,1754830240475,-566.37,0.00020271,2]
[378334856,1754830240484,-460.0,0.00020271,2]
[378334857,1754830240493,-460.0,0.00020271,2]
[378334858,1754830240503,-460.0,0.00020272,2]
[378334859,1754830240513,-558.42,0.00020272,2]
[378334860,1754830240523,-460.0,0.00020272,2]
[378334861,1754830240532,-460.0,0.00020272,2]
[378334862,1754830240541,-2065.88,0.00020272,2]
[378334863,1754830240551,-460.0,0.00020272,2]
[378334864,1754830240560,-460.0,0.00020272,2]
[378334865,1754830240570,-198.0,0.00020272,2]
[378334866,1754830240579,-151.0,0.00020272,2]
[378334867,1754830240588,-460.0,0.00020272,2]
[378334868,1754830240597,-460.0,0.00020272,2]
[378334869,1754830240607,-460.0,0.00020272,2]
[378334870,1754830240616,-460.0,0.00020272,2]
[378334871,1754830240625,-460.0,0.00020272,2]
[378334872,1754830240635,-460.0,0.00020272,2]
[378334873,1754830240646,-460.0,0.00020272,2]
[378334874,1754830240656,-753.63,0.00020272,2]
[378334875,1754830240665,-460.0,0.00020272,2]
[378334876,1754830240675,-460.0,0.00020272,2]
[378334877,1754830240684,-460.0,0.00020272,2]
[378334878,1754830240694,-460.0,0.00020272,2]
[378334880,1754830240703,-460.0,0.00020272,2]
[378334881,1754830240713,-460.0,0.00020272,2]
[378334882,1754830240723,-764.6,0.00020272,2]
[378334883,1754830240732,-468.01,0.00020272,2]
[378334884,1754830240742,-351.09783321,0.00020273,2]
[378334885,1754830240751,-464.52620459,0.00020273,2]
[378334886,1754830240760,-460.0,0.00020273,2]
[378334887,1754830240770,-727.7,0.00020273,2]
[378334888,1754830240779,-1840.89,0.00020273,2]
[378334890,1754830240788,-460.0,0.00020273,2]
[378334892,1754830240798,-460.0,0.00020273,2]
[378334893,1754830240807,-624.49,0.00020273,2]
[378334894,1754830240817,-1200.0,0.000204,2]
[378334896,1754830240826,-837.19,0.00020442,2]
[378334898,1754830240835,-559.51,0.00020442,2]
[378334900,1754830240845,-460.0,0.00020442,2]
[378334902,1754830240855,-460.0,0.00020442,2]
[378334903,1754830240864,-516.38,0.00020443,2]
[378334904,1754830240873,-460.0,0.00020443,2]
[378334905,1754830240883,-460.0,0.00020443,2]
[378334906,1754830240892,-460.0,0.00020443,2]
[378334907,1754830240901,-460.0,0.00020443,2]
[378334908,1754830240910,-460.0,0.00020443,2]
[378334909,1754830240919,-460.0,0.00020443,2]
[378334910,1754830240929,-460.0,0.00020443,2]
[378334912,1754830240938,-460.0,0.00020443,2]
[378334913,1754830240947,-460.0,0.00020443,2]
[378334914,1754830240956,-460.0,0.00020443,2]
[378334915,1754830240966,-460.0,0.00020443,2]
[378334916,1754830240979,-460.0,0.00020443,2]
[378334917,1754830240988,-460.79180459,0.00020443,2]
[378334918,1754830240998,-460.0,0.00020443,2]
[378334919,1754830241007,-460.0,0.00020443,2]
[378334920,1754830241017,-341.3293154,0.00020443,2]
[378334921,1754830241026,-460.0,0.00020443,2]
[378334922,1754830241035,-460.0,0.00020443,2]
[378334923,1754830241045,-460.0,0.00020443,2]
[378334924,1754830241054,-460.0,0.00020443,2]
[378334925,1754830241064,-541.93928606,0.00020443,2]
[378334926,1754830241074,-460.0,0.00020443,2]
[378334927,1754830241083,-460.0,0.00020443,2]
[378334928,1754830241092,-460.0,0.00020443,2]
[378334929,1754830241101,-460.0,0.00020443,2]
[378334930,1754830241110,-460.0,0.00020443,2]
[378334931,1754830241119,-460.0,0.00020443,2]
[378334932,1754830241128,-460.0,0.00020443,2]
[378334933,1754830241137,-191.376992,0.00020443,2]
[378334934,1754830241146,-460.0,0.00020443,2]
[378334935,1754830241155,-460.0,0.00020443,2]
[378334936,1754830241164,-460.0,0.00020443,2]
[378334937,1754830241174,-460.0,0.00020443,2]
[378334938,1754830241182,-460.0,0.00020443,2]
[378334939,1754830241191,-460.0,0.00020443,2]
[378334940,1754830241200,-229.09,0.00020536,3]
[378334941,1754830241209,-687.27,0.00020536,3]
[378334943,1754830241218,-500.0,0.00020544,2]
[378334945,1754830241227,-460.0,0.00020544,2]
[378334947,1754830241236,-460.0,0.00020544,2]
[378334949,1754830241245,-460.0,0.00020544,2]
[378334951,1754830241254,-406.88128269,0.00020544,2]
[378334952,1754830241263,-846.67,0.00020544,2]
[378334953,1754830241273,-629.56,0.00020544,2]
[378334954,1754830241282,-728.12,0.00020544,2]
[378334955,1754830241291,-745.25,0.00020544,2]
[378334956,1754830241300,-460.0,0.00020544,2]
[378334957,1754830241310,-460.0,0.00020544,2]
[378334958,1754830241319,-924.74,0.00020544,2]
[378334959,1754830241328,-460.0,0.00020545,2]
[378334960,1754830241338,-460.0,0.00020545,2]
[378334961,1754830241347,-692.27,0.00020545,2]
[378334962,1754830241356,-460.0,0.00020545,2]
[378334963,1754830241365,-460.0,0.00020545,2]
[378334964,1754830241375,-460.0,0.00020545,2]
[378334965,1754830241384,-715.24,0.00020545,2]
[378334966,1754830241394,-460.0,0.00020545,2]
[378334967,1754830241403,-460.0,0.00020545,2]
[378334968,1754830241412,-482.87,0.00020545,2]
[378334969,1754830241422,-460.0,0.00020545,2]
[378334970,1754830241431,-460.0,0.00020545,2]
[378334971,1754830241440,-651.52,0.00020545,2]
[378334972,1754830241450,-460.0,0.00020545,2]
[378334973,1754830241459,-151.0,0.00020546,2]
[378334974,1754830241468,-558.42,0.00020546,2]
[378334975,1754830241477,-460.0,0.00020546,2]
[378334976,1754830241487,-2065.88,0.00020546,2]
[378334977,1754830241496,-460.0,0.00020546,2]
[378334978,1754830241505,-460.0,0.00020546,2]
[378334979,1754830241514,-523.55,0.00020546,2]
[378334980,1754830241524,-460.0,0.00020546,2]
[378334981,1754830241533,-460.0,0.00020546,2]
[378334982,1754830241544,-460.0,0.00020546,2]
[378334983,1754830241553,-753.63,0.00020546,2]
[378334984,1754830241562,-460.0,0.00020546,2]
[378334985,1754830241571,-460.0,0.00020546,2]
[378334986,1754830241580,-764.6,0.00020546,2]
[378334987,1754830241590,-460.0,0.00020547,2]
[378334988,1754830241600,-727.7,0.00020547,2]
[378334989,1754830241609,-1840.89,0.00020547,2]
[378334990,1754830241618,-624.49,0.00020547,2]
[378334991,1754830241630,-500.0,0.00020606,2]
[378334992,1754830241645,-500.0,0.00020606,2]
[378334993,1754830241654,-500.0,0.00020606,2]
[378334994,1754830241663,-500.0,0.00020606,2]
[378334995,1754830241673,-506.57853464,0.00020646,2]
[378334996,1754830241683,-513.89946944,0.00020646,2]
[378334997,1754830241693,-837.19,0.00020716,2]
[378334998,1754830241705,-559.51,0.00020716,2]
[378334999,1754830241722,-460.0,0.00020716,2]
[378335000,1754830241732,-460.0,0.00020716,2]
[378335001,1754830241741,-460.0,0.00020717,2]
[378335002,1754830241750,-460.0,0.00020717,2]
[378335003,1754830241760,-460.0,0.00020717,2]
[378335004,1754830241770,-460.0,0.00020717,2]
[378335005,1754830241779,-460.0,0.00020717,2]
[378335006,1754830241789,-460.0,0.00020717,2]
[378335007,1754830241798,-460.0,0.00020717,2]
[378335008,1754830241808,-460.0,0.00020717,2]
[378335009,1754830241818,-460.0,0.00020717,2]
[378335010,1754830241828,-460.0,0.00020717,2]
[378335011,1754830241841,-576.52,0.00020818,2]
[378335012,1754830241851,-846.67,0.00020818,2]
[378335013,1754830241861,-629.56,0.00020818,2]
[378335014,1754830241871,-728.12,0.00020818,2]
[378335015,1754830241881,-745.25,0.00020818,2]
[378335016,1754830241890,-924.74,0.00020818,2]
[378335017,1754830241900,-237.12,0.00020819,2]
[378335018,1754830241910,-692.27,0.00020819,2]
[378335019,1754830241920,-460.0,0.00020819,2]
[378335020,1754830241929,-715.24,0.00020819,2]
[378335021,1754830241938,-460.0,0.00020819,2]
[378335022,1754830241947,-503.78,0.00020819,2]
[378335023,1754830241957,-460.0,0.00020819,2]
[378335024,1754830241967,-651.52,0.00020819,2]
[378335025,1754830241981,-460.0,0.00020819,2]
[378335026,1754830241990,-558.42,0.0002082,2]
[378335027,1754830241999,-460.0,0.0002082,2]
[378335028,1754830242008,-2065.88,0.0002082,2]
[378335029,1754830242018,-469.9,0.0002082,2]
[378335030,1754830242027,-460.0,0.0002082,2]
[378335031,1754830242036,-460.0,0.0002082,2]
[378335032,1754830242046,-753.63,0.0002082,2]
[378335033,1754830242154,-460.0,0.0002082,2]
[378335034,1754830242164,-764.6,0.0002082,2]
[378335035,1754830242173,-460.0,0.00020821,2]
[378335036,1754830242182,-727.7,0.00020821,2]
[378335037,1754830242191,-1840.89,0.00020821,2]
[378335038,1754830242200,-624.49,0.00020821,2]
[378335039,1754830242209,-837.19,0.0002099,2]
[378335040,1754830242219,-559.51,0.0002099,2]
[378335041,1754830242228,-460.0,0.0002099,2]
[378335042,1754830242237,-460.0,0.00020991,2]
[378335043,1754830242247,-460.0,0.00020991,2]
[378335044,1754830242256,-351.36923345,0.00020991,2]
[378335045,1754830242265,-460.0,0.00020991,2]
[378335046,1754830242274,-460.0,0.00020991,2]
[378335047,1754830242283,-460.0,0.00020991,2]
[378335048,1754830242293,-460.0,0.00020991,2]
[378335049,1754830242302,-460.0,0.00020991,2]
[378335050,1754830242311,-460.0,0.00020991,2]
[378335051,1754830242321,-200.0,0.00020997,15]
[378335052,1754830242330,-846.67,0.00021092,2]
[378335053,1754830242339,-629.56,0.00021092,2]
[378335054,1754830242348,-728.12,0.00021092,2]
[378335055,1754830242357,-745.25,0.00021092,2]
[378335056,1754830242367,-924.74,0.00021092,2]
[378335057,1754830242384,-692.27,0.00021093,2]
[378335058,1754830242399,-460.0,0.00021093,2]
[378335059,1754830242408,-715.24,0.00021093,2]
[378335060,1754830242417,-460.0,0.00021093,2]
[378335061,1754830242427,-460.0,0.00021093,2]
[378335062,1754830242436,-651.52,0.00021093,2]
[378335063,1754830242446,-460.0,0.00021093,2]
[378335064,1754830242455,-500.0,0.00021093,2]
[378335065,1754830242466,-227.01990466,0.00021093,2]
[378335066,1754830242475,-500.0,0.00021093,2]
[378335067,1754830242484,-500.0,0.00021093,2]
[378335068,1754830242494,-500.0,0.00021093,2]
[378335069,1754830242504,-500.0,0.00021093,2]
[378335070,1754830242513,-500.0,0.00021093,2]
[378335071,1754830242522,-155.65866646,0.00021093,2]
[378335072,1754830242532,-500.0,0.00021093,2]
[378335073,1754830242542,-558.42,0.00021094,2]
[378335074,1754830242551,-469.7815409,0.00021094,2]
[378335075,1754830242561,-2065.88,0.00021094,2]
[378335076,1754830242571,-460.0,0.00021094,2]
[378335077,1754830242580,-460.0,0.00021094,2]
[378335078,1754830242590,-753.63,0.00021094,2]
[378335079,1754830242602,-460.0,0.00021094,2]
[378335080,1754830242611,-764.6,0.00021094,2]
[378335081,1754830242621,-460.0,0.00021095,2]
[378335082,1754830242631,-727.7,0.00021095,2]
[378335083,1754830242642,-1840.89,0.00021095,2]
[378335084,1754830242651,-624.49,0.00021095,2]
[378335085,1754830242663,-500.0,0.00021154,2]
[378335086,1754830242675,-500.0,0.00021154,2]
[378335087,1754830242684,-1000.0,0.00021199,2]
[378335088,1754830242694,-837.19,0.00021264,2]
[378335089,1754830242705,-559.51,0.00021264,2]
[378335090,1754830242714,-460.0,0.00021264,2]
[378335091,1754830242723,-460.0,0.00021265,2]
[378335092,1754830242732,-471.92659909,0.00021265,2]
[378335093,1754830242742,-317.50998748,0.00021265,2]
[378335094,1754830242751,-468.48737926,0.00021265,2]
[378335095,1754830242761,-460.0,0.00021265,2]
[378335096,1754830242770,-503.27081221,0.00021265,2]
[378335097,1754830242779,-460.0,0.00021265,2]
[378335098,1754830242789,-989.75157099,0.00021266,2]
[378335099,1754830242799,-1000.0,0.00021267,2]
[378335100,1754830242809,-846.67,0.00021366,2]
[378335101,1754830242818,-629.56,0.00021366,2]
[378335102,1754830242827,-728.12,0.00021366,2]
[378335103,1754830242837,-745.25,0.00021366,2]
[378335104,1754830242846,-924.74,0.00021366,2]
[378335105,1754830242856,-692.27,0.00021367,2]
[378335106,1754830242873,-460.0,0.00021367,2]
[378335107,1754830242883,-715.24,0.00021367,2]
[378335108,1754830242893,-188.17655777,0.00021367,2]
[378335109,1754830242904,-468.00330923,0.00021367,2]
[378335110,1754830242914,-651.52,0.00021367,2]
[378335111,1754830242923,-460.0,0.00021367,2]
[378335112,1754830242932,-558.42,0.00021368,2]
[378335113,1754830242942,-2065.88,0.00021368,2]
[378335114,1754830242951,-460.0,0.00021368,2]
[378335115,1754830242960,-460.0,0.00021368,2]
[378335117,1754830242971,-753.63,0.00021368,2]
[378335119,1754830242983,-460.0,0.00021368,2]
[378335121,1754830242992,-764.6,0.00021368,2]
[378335122,1754830243001,-460.0,0.00021369,2]
[378335124,1754830243011,-727.7,0.00021369,2]
[378335125,1754830243021,-1840.89,0.00021369,2]
[378335126,1754830243030,-624.49,0.00021369,2]
[378335127,1754830243039,-1300.0,0.000214,3]
[378335128,1754830243050,-837.19,0.00021538,2]
[378335129,1754830243060,-559.51,0.00021538,2]
[378335130,1754830243069,-460.0,0.00021538,2]
[378335131,1754830243078,-460.0,0.00021539,2]
[378335132,1754830243087,-524.27,0.00021539,2]
[378335133,1754830243096,-460.0,0.00021539,2]
[378335135,1754830243106,-1269.98852713,0.00021541,2]
[378335136,1754830243115,-846.67,0.0002164,2]
[378335137,1754830243124,-629.56,0.0002164,2]
[378335139,1754830243133,-728.12,0.0002164,2]
[378335141,1754830243142,-745.25,0.0002164,2]
[378335143,1754830243151,-924.74,0.0002164,2]
[378335144,1754830243160,-692.27,0.00021641,2]
[378335145,1754830243169,-460.0,0.00021641,2]
[378335146,1754830243178,-715.24,0.00021641,2]
[378335147,1754830243188,-651.52,0.00021641,2]
[378335148,1754830243197,-460.0,0.00021641,2]
[378335149,1754830243206,-558.42,0.00021642,2]
[378335150,1754830243215,-2065.88,0.00021642,2]
[378335151,1754830243225,-344.2,0.00021642,2]
[378335152,1754830243234,-460.0,0.00021642,2]
[378335153,1754830243243,-753.63,0.00021642,2]